[Event "Open NK Rapid 2025"]
[Site "Helmond, Netherlands"]
[Date "2025.05.03"]
[Round "8.24"]
[White "Messaoudi, Nino"]
[Black "Grooten, Herman"]
[Result "1-0"]
[TimeControl "15+5"]
[WhiteFideId "1099930"]
[BlackFideId "1000330"]
[WhiteElo "1875"]
[BlackElo "2219"]

1. d4 {[%clk 00:15:08]} {[%emt 00:00:02]} Nf6 {[%clk 00:15:10]} 2. c4 {[%clk
00:15:11]} {[%emt 00:00:02]} e6 {[%clk 00:15:14]} 3. Nc3 {[%clk 00:15:15]}
{[%emt 00:00:02]} Bb4 {[%clk 00:15:18]} {[%emt 00:00:04]} 4. f3 {[%clk
00:15:17]} d5 {[%clk 00:15:21]} {[%emt 00:00:02]} 5. a3 {[%clk 00:15:18]}
{[%emt 00:00:03]} Bxc3+ {[%clk 00:15:24]} {[%emt 00:00:02]} 6. bxc3 {[%clk
00:15:21]} {[%emt 00:00:02]} c6 {[%clk 00:15:27]} {[%emt 00:00:02]} 7. e3
{[%clk 00:15:06]} {[%emt 00:00:20]} O-O {[%clk 00:15:29]} {[%emt 00:00:03]} 8.
Bd3 {[%clk 00:15:00]} {[%emt 00:00:11]} b6 {[%clk 00:15:32]} {[%emt 00:00:03]}
9. Ne2 {[%clk 00:15:02]} {[%emt 00:00:02]} Ba6 {[%clk 00:15:35]} {[%emt
00:00:03]} 10. cxd5 {[%clk 00:14:30]} {[%emt 00:00:36]} Bxd3 {[%clk 00:15:36]}
{[%emt 00:00:04]} 11. Qxd3 {[%clk 00:14:32]} {[%emt 00:00:02]} cxd5 {[%clk
00:15:40]} {[%emt 00:00:02]} 12. O-O {[%clk 00:14:32]} {[%emt 00:00:06]} Qc8
{[%clk 00:15:41]} {[%emt 00:00:03]} 13. e4 {[%clk 00:13:40]} {[%emt 00:00:57]}
Nc6 {[%clk 00:14:50]} {[%emt 00:00:56]} 14. e5 {[%clk 00:13:21]} {[%emt
00:00:24]} Nd7 {[%clk 00:14:53]} {[%emt 00:00:02]} 15. f4 {[%clk 00:13:08]}
{[%emt 00:00:18]} f5 {[%clk 00:14:56]} {[%emt 00:00:02]} 16. g4 {[%clk
00:11:16]} {[%emt 00:01:56]} Ne7 {[%clk 00:13:27]} {[%emt 00:01:34]} 17. Ng3
{[%clk 00:10:54]} {[%emt 00:00:27]} Qc4 {[%clk 00:13:04]} {[%emt 00:00:29]} 18.
Qxc4 {[%clk 00:09:01]} {[%emt 00:01:58]} dxc4 {[%clk 00:13:07]} {[%emt
00:00:02]} 19. gxf5 {[%clk 00:08:49]} {[%emt 00:00:17]} Nxf5 {[%clk 00:12:50]}
{[%emt 00:00:21]} 20. a4 {[%clk 00:08:18]} {[%emt 00:00:38]} a6 {[%clk
00:11:59]} {[%emt 00:00:56]} 21. Ba3 {[%clk 00:07:18]} {[%emt 00:01:04]} Rf7
{[%clk 00:07:30]} {[%emt 00:04:34]} 22. Nxf5 {[%clk 00:06:31]} {[%emt
00:00:52]} Rxf5 {[%clk 00:07:28]} {[%emt 00:00:07]} 23. Bd6 {[%clk 00:06:00]}
{[%emt 00:00:36]} Kf7 {[%clk 00:06:30]} {[%emt 00:01:04]} 24. Kg2 {[%clk
00:06:00]} {[%emt 00:00:04]} Rg8 {[%clk 00:06:30]} {[%emt 00:00:05]} 25. h4
{[%clk 00:03:48]} {[%emt 00:02:17]} h6 {[%clk 00:06:22]} {[%emt 00:00:13]} 26.
Rae1 {[%clk 00:03:22]} {[%emt 00:00:31]} Ke8 {[%clk 00:05:15]} {[%emt
00:01:11]} 27. Kg3 {[%clk 00:01:49]} {[%emt 00:01:37]} Kd8 {[%clk 00:04:47]}
{[%emt 00:00:35]} 28. Kg4 {[%clk 00:01:03]} {[%emt 00:00:50]} g6 {[%clk
00:04:50]} {[%emt 00:00:03]} 29. Rb1 {[%clk 00:00:40]} {[%emt 00:00:28]} Rg7
{[%clk 00:03:01]} {[%emt 00:01:54]} 30. Kh3 {[%clk 00:00:19]} {[%emt 00:00:27]}
g5 {[%clk 00:01:55]} {[%emt 00:01:11]} 31. fxg5 {[%clk 00:00:22]} {[%emt
00:00:01]} hxg5 {[%clk 00:01:58]} {[%emt 00:00:02]} 32. Rxf5 {[%clk 00:00:22]}
{[%emt 00:00:05]} exf5 {[%clk 00:02:00]} {[%emt 00:00:04]} 33. e6 {[%clk
00:00:13]} {[%emt 00:00:14]} Nf6 {[%clk 00:01:58]} {[%emt 00:00:07]} 34. Rxb6
{[%clk 00:00:13]} {[%emt 00:00:05]} g4+ {[%clk 00:01:49]} {[%emt 00:00:14]} 35.
Kg2 {[%clk 00:00:11]} {[%emt 00:00:05]} Rc7 {[%clk 00:01:42]} {[%emt 00:00:13]}
36. Bxc7+ {[%clk 00:00:13]} {[%emt 00:00:03]} Kxc7 {[%clk 00:01:46]} 37. Rxa6
{[%clk 00:00:16]} {[%emt 00:00:02]} f4 {[%clk 00:01:49]} {[%emt 00:00:03]} 38.
e7 {[%clk 00:00:18]} {[%emt 00:00:03]} f3+ {[%clk 00:01:51]} {[%emt 00:00:03]}
39. Kf1 {[%clk 00:00:20]} {[%emt 00:00:03]} Ne8 {[%clk 00:01:46]} {[%emt
00:00:10]} 40. Rg6 {[%clk 00:00:23]} 1-0

[Event "Open NK Rapid 2025"]
[Site "Helmond, Netherlands"]
[Date "2025.05.03"]
[Round "8.25"]
[White "Elferink, Leon"]
[Black "Kools, Thomas"]
[Result "1-0"]
[TimeControl "15+5"]
[WhiteFideId "1086545"]
[BlackFideId "1054759"]
[WhiteElo "1822"]
[BlackElo "2094"]

1. e4 {[%clk 00:15:08]} {[%emt 00:00:02]} c5 {[%clk 00:15:09]} {[%emt
00:00:01]} 2. Nf3 {[%clk 00:15:11]} {[%emt 00:00:01]} e6 {[%clk 00:15:13]}
{[%emt 00:00:02]} 3. c3 {[%clk 00:15:15]} {[%emt 00:00:03]} Nf6 {[%clk
00:15:16]} 4. e5 {[%clk 00:15:19]} Nd5 {[%clk 00:15:20]} 5. g3 {[%clk
00:15:22]} {[%emt 00:00:02]} b6 {[%clk 00:14:58]} {[%emt 00:00:27]} 6. Bg2
{[%clk 00:14:48]} {[%emt 00:00:39]} Bb7 {[%clk 00:15:00]} {[%emt 00:00:03]} 7.
O-O {[%clk 00:14:45]} {[%emt 00:00:08]} d6 {[%clk 00:14:49]} {[%emt 00:00:16]}
8. exd6 {[%clk 00:14:47]} {[%emt 00:00:03]} Bxd6 {[%clk 00:14:37]} {[%emt
00:00:16]} 9. d4 {[%clk 00:14:17]} {[%emt 00:00:36]} O-O {[%clk 00:13:10]}
{[%emt 00:01:32]} 10. Nbd2 {[%clk 00:13:26]} {[%emt 00:00:56]} Nf6 {[%clk
00:13:00]} {[%emt 00:00:15]} 11. Re1 {[%clk 00:13:00]} {[%emt 00:00:31]} cxd4
{[%clk 00:12:56]} {[%emt 00:00:09]} 12. Nc4 {[%clk 00:11:42]} {[%emt 00:01:23]}
Bc5 {[%clk 00:10:56]} {[%emt 00:02:05]} 13. b4 {[%clk 00:10:09]} {[%emt
00:01:38]} Be7 {[%clk 00:11:00]} {[%emt 00:00:01]} 14. Qxd4 {[%clk 00:10:10]}
{[%emt 00:00:04]} Qxd4 {[%clk 00:10:57]} {[%emt 00:00:08]} 15. Nxd4 {[%clk
00:09:58]} {[%emt 00:00:17]} Bxg2 {[%clk 00:11:00]} {[%emt 00:00:02]} 16. Kxg2
{[%clk 00:10:00]} {[%emt 00:00:02]} Rc8 {[%clk 00:10:50]} {[%emt 00:00:17]} 17.
Ne5 {[%clk 00:09:24]} {[%emt 00:00:40]} Rxc3 {[%clk 00:10:45]} {[%emt
00:00:10]} 18. Bb2 {[%clk 00:09:26]} {[%emt 00:00:03]} Rc8 {[%clk 00:09:08]}
{[%emt 00:01:41]} 19. b5 {[%clk 00:07:49]} {[%emt 00:01:43]} Nfd7 {[%clk
00:07:34]} {[%emt 00:01:39]} 20. Nec6 Nxc6 {[%clk 00:06:49]} 21. Nxc6 {[%clk
00:06:43]} {[%emt 00:00:02]} Bf8 {[%clk 00:06:52]} {[%emt 00:00:02]} 22. Rad1
{[%clk 00:06:25]} {[%emt 00:00:23]} Nc5 {[%clk 00:06:45]} {[%emt 00:00:11]} 23.
Ba3 {[%clk 00:05:57]} {[%emt 00:00:33]} a6 {[%clk 00:06:19]} {[%emt 00:00:31]}
24. Bxc5 {[%clk 00:05:50]} {[%emt 00:00:13]} Bxc5 {[%clk 00:06:22]} {[%emt
00:00:03]} 25. a4 {[%clk 00:05:53]} {[%emt 00:00:02]} axb5 {[%clk 00:06:25]}
{[%emt 00:00:01]} 26. axb5 {[%clk 00:05:56]} {[%emt 00:00:02]} Ra2 {[%clk
00:06:25]} {[%emt 00:00:05]} 27. Rd7 {[%clk 00:02:49]} {[%emt 00:03:12]} Rxf2+
{[%clk 00:06:18]} {[%emt 00:00:12]} 28. Kh3 {[%clk 00:02:53]} {[%emt 00:00:01]}
g6 {[%clk 00:05:03]} {[%emt 00:01:20]} 29. Ra1 {[%clk 00:02:41]} {[%emt
00:00:18]} Rf8 {[%clk 00:02:26]} {[%emt 00:02:41]} 30. Raa7 {[%clk 00:02:27]}
{[%emt 00:00:19]} h5 {[%clk 00:02:30]} {[%emt 00:00:01]} 31. Ne5 {[%clk
00:02:17]} {[%emt 00:00:15]} Kg7 {[%clk 00:02:11]} {[%emt 00:00:24]} 32. Rac7
{[%clk 00:02:03]} {[%emt 00:00:19]} Kf6 {[%clk 00:01:42]} {[%emt 00:00:34]} 33.
Nd3 {[%clk 00:01:35]} {[%emt 00:00:33]} Rc2 {[%clk 00:01:42]} {[%emt 00:00:04]}
34. Nxc5 {[%clk 00:01:21]} {[%emt 00:00:20]} Rxc5 {[%clk 00:01:45]} {[%emt
00:00:02]} 35. Rxc5 {[%clk 00:01:24]} {[%emt 00:00:03]} bxc5 {[%clk 00:01:49]}
36. Rc7 {[%clk 00:01:27]} {[%emt 00:00:02]} Rb8 {[%clk 00:01:33]} {[%emt
00:00:21]} 37. Rxc5 {[%clk 00:01:30]} {[%emt 00:00:01]} e5 {[%clk 00:01:34]}
{[%emt 00:00:04]} 38. Kg2 {[%clk 00:01:21]} {[%emt 00:00:15]} Rb7 {[%clk
00:01:27]} {[%emt 00:00:12]} 39. Kf3 {[%clk 00:01:12]} {[%emt 00:00:13]} Ke6
{[%clk 00:01:30]} {[%emt 00:00:02]} 40. h3 {[%clk 00:00:56]} {[%emt 00:00:21]}
Rb6 {[%clk 00:00:53]} {[%emt 00:00:42]} 41. Ke4 {[%clk 00:00:44]} {[%emt
00:00:17]} f5+ {[%clk 00:00:53]} {[%emt 00:00:05]} 42. Kd3 {[%clk 00:00:48]}
{[%emt 00:00:01]} Kd6 {[%clk 00:00:33]} {[%emt 00:00:24]} 43. Kc4 {[%clk
00:00:52]} {[%emt 00:00:02]} Rb7 {[%clk 00:00:13]} {[%emt 00:00:25]} 44. Rc6+
{[%clk 00:00:52]} {[%emt 00:00:04]} Ke7 {[%clk 00:00:16]} {[%emt 00:00:01]} 45.
Rxg6 {[%clk 00:00:43]} {[%emt 00:00:14]} f4 {[%clk 00:00:17]} {[%emt 00:00:05]}
46. Rg7+ {[%clk 00:00:42]} {[%emt 00:00:06]} 1-0

[Event "Open NK Rapid 2025"]
[Site "Helmond, Netherlands"]
[Date "2025.05.03"]
[Round "9.1"]
[White "Warmerdam, Max"]
[Black "Sydykov, Bayastan"]
[Result "1-0"]
[TimeControl "15+5"]
[WhiteFideId "1048104"]
[BlackFideId "13829610"]
[WhiteElo "2517"]
[BlackElo "2297"]

1. Nf3 {[%clk 00:15:08]} {[%emt 00:00:02]} d5 {[%clk 00:15:09]} {[%emt
00:00:01]} 2. g3 {[%clk 00:15:11]} {[%emt 00:00:02]} Bg4 {[%clk 00:15:12]}
{[%emt 00:00:01]} 3. Bg2 {[%clk 00:15:14]} {[%emt 00:00:02]} Nd7 {[%clk
00:15:16]} {[%emt 00:00:01]} 4. h3 {[%clk 00:15:17]} {[%emt 00:00:02]} Bxf3
{[%clk 00:15:20]} {[%emt 00:00:02]} 5. Bxf3 {[%clk 00:15:20]} {[%emt 00:00:02]}
c6 {[%clk 00:15:24]} {[%emt 00:00:01]} 6. d4 {[%clk 00:14:14]} {[%emt
00:01:11]} Ngf6 {[%clk 00:15:14]} {[%emt 00:00:15]} 7. c4 {[%clk 00:14:14]}
{[%emt 00:00:04]} e6 {[%clk 00:14:12]} {[%emt 00:01:08]} 8. O-O {[%clk
00:14:04]} {[%emt 00:00:15]} Be7 {[%clk 00:13:57]} {[%emt 00:00:19]} 9. Qc2
{[%clk 00:14:00]} {[%emt 00:00:09]} O-O {[%clk 00:13:59]} {[%emt 00:00:03]} 10.
Rd1 {[%clk 00:13:55]} {[%emt 00:00:10]} Rc8 {[%clk 00:13:20]} {[%emt 00:00:44]}
11. Nd2 {[%clk 00:13:00]} {[%emt 00:00:59]} c5 {[%clk 00:10:41]} {[%emt
00:02:46]} 12. dxc5 {[%clk 00:10:26]} {[%emt 00:02:39]} Bxc5 {[%clk 00:10:17]}
{[%emt 00:00:29]} 13. Qb3 {[%clk 00:10:07]} {[%emt 00:00:23]} Qc7 {[%clk
00:09:34]} {[%emt 00:00:48]} 14. Kg2 {[%clk 00:09:45]} {[%emt 00:00:27]} Ne5
{[%clk 00:09:20]} {[%emt 00:00:18]} 15. cxd5 {[%clk 00:09:15]} {[%emt
00:00:36]} Nxf3 {[%clk 00:09:16]} {[%emt 00:00:10]} 16. Nxf3 {[%clk 00:09:09]}
{[%emt 00:00:10]} Nxd5 {[%clk 00:09:15]} {[%emt 00:00:07]} 17. Bd2 {[%clk
00:09:12]} {[%emt 00:00:02]} Qb6 {[%clk 00:08:20]} {[%emt 00:01:00]} 18. Qxb6
{[%clk 00:09:11]} {[%emt 00:00:05]} Bxb6 {[%clk 00:08:24]} {[%emt 00:00:02]} 19.
Rac1 {[%emt 00:01:34]} Rfd8 {[%clk 00:06:57]} 20. e4 {[%clk 00:08:19]} {[%emt
00:01:00]} Rxc1 {[%clk 00:06:23]} {[%emt 00:00:39]} 21. Rxc1 {[%clk 00:08:15]}
{[%emt 00:00:08]} Ne7 {[%clk 00:06:27]} {[%emt 00:00:02]} 22. Kf1 {[%clk
00:08:02]} {[%emt 00:00:18]} Nc6 {[%clk 00:06:07]} {[%emt 00:00:25]} 23. Ke2
{[%clk 00:08:04]} {[%emt 00:00:03]} f6 {[%clk 00:05:48]} {[%emt 00:00:23]} 24.
Be3 {[%clk 00:07:31]} {[%emt 00:00:38]} Bxe3 {[%clk 00:05:47]} {[%emt
00:00:06]} 25. Kxe3 {[%clk 00:07:35]} {[%emt 00:00:01]} Kf7 {[%clk 00:05:45]}
{[%emt 00:00:08]} 26. Ne1 {[%clk 00:07:16]} {[%emt 00:00:23]} Ke7 {[%clk
00:04:00]} {[%emt 00:01:56]} 27. Nd3 {[%clk 00:07:20]} Rd6 {[%clk 00:03:08]}
{[%emt 00:00:53]} 28. h4 {[%clk 00:07:10]} {[%emt 00:00:14]} e5 {[%clk
00:02:59]} {[%emt 00:00:14]} 29. h5 {[%clk 00:07:00]} {[%emt 00:00:15]} b6
{[%clk 00:02:40]} {[%emt 00:00:25]} 30. f4 {[%clk 00:06:07]} {[%emt 00:00:57]}
Kd7 {[%clk 00:02:39]} {[%emt 00:00:06]} 31. b4 {[%clk 00:05:54]} {[%emt
00:00:18]} Re6 {[%clk 00:01:57]} {[%emt 00:00:47]} 32. b5 {[%clk 00:05:41]}
{[%emt 00:00:19]} Ne7 {[%clk 00:01:24]} {[%emt 00:00:37]} 33. fxe5 {[%clk
00:05:14]} {[%emt 00:00:32]} fxe5 {[%clk 00:01:28]} {[%emt 00:00:01]} 34. a4
{[%clk 00:05:07]} {[%emt 00:00:12]} g6 {[%clk 00:00:48]} {[%emt 00:00:46]} 35.
hxg6 {[%clk 00:04:53]} {[%emt 00:00:18]} hxg6 {[%clk 00:00:51]} {[%emt
00:00:02]} 36. Rh1 {[%clk 00:04:56]} {[%emt 00:00:02]} Nc8 {[%clk 00:00:12]}
{[%emt 00:00:45]} 37. Rh7+ {[%clk 00:04:57]} {[%emt 00:00:03]} Kd6 {[%clk
00:00:14]} {[%emt 00:00:04]} 38. g4 {[%clk 00:04:27]} {[%emt 00:00:35]} Re8
{[%clk 00:00:11]} {[%emt 00:00:08]} 39. g5 {[%clk 00:04:20]} {[%emt 00:00:11]}
Ne7 {[%clk 00:00:07]} {[%emt 00:00:09]} 40. Rf7 {[%clk 00:04:22]} {[%emt
00:00:03]} Rh8 {[%clk 00:00:07]} {[%emt 00:00:06]} 41. Rf6+ {[%clk 00:04:25]}
{[%emt 00:00:02]} Kc7 {[%clk 00:00:10]} {[%emt 00:00:02]} 42. Nxe5 {[%clk
00:04:27]} {[%emt 00:00:02]} Rh3+ {[%clk 00:00:06]} {[%emt 00:00:09]} 43. Kf4
{[%clk 00:04:27]} {[%emt 00:00:05]} Rh4+ {[%clk 00:00:09]} {[%emt 00:00:02]} 44.
Kf3 {[%clk 00:04:30]} {[%emt 00:00:02]} Rh5 {[%clk 00:00:11]} {[%emt 00:00:03]}
45. Nxg6 {[%clk 00:04:30]} {[%emt 00:00:05]} Nc8 {[%clk 00:00:10]} {[%emt
00:00:07]} 46. Kg4 {[%clk 00:04:29]} {[%emt 00:00:05]} Rh1 {[%clk 00:00:14]}
{[%emt 00:00:01]} 47. e5 {[%clk 00:04:33]} {[%emt 00:00:02]} Rg1+ {[%clk
00:00:14]} {[%emt 00:00:05]} 48. Kf5 {[%clk 00:04:32]} {[%emt 00:00:06]} Kd7
{[%clk 00:00:10]} {[%emt 00:00:09]} 49. Rf7+ {[%clk 00:04:35]} {[%emt
00:00:01]} Kd8 {[%clk 00:00:11]} {[%emt 00:00:05]} 50. e6 {[%clk 00:04:11]}
{[%emt 00:00:29]} Nd6+ {[%clk 00:00:08]} {[%emt 00:00:08]} 51. Ke5 {[%clk
00:04:15]} {[%emt 00:00:01]} Nc4+ {[%clk 00:00:07]} {[%emt 00:00:07]} 52. Kf6
{[%clk 00:04:18]} 1-0

[Event "Open NK Rapid 2025"]
[Site "Helmond, Netherlands"]
[Date "2025.05.03"]
[Round "9.2"]
[White "Bok, Benjamin"]
[Black "Beerdsen, Thomas"]
[Result "1-0"]
[TimeControl "15+5"]
[WhiteFideId "1017063"]
[BlackFideId "1030108"]
[WhiteElo "2583"]
[BlackElo "2485"]

1. Nf3 {[%clk 00:14:50]} {[%emt 00:00:10]} d5 {[%clk 00:15:08]} {[%emt
00:00:12]} 2. d4 {[%clk 00:14:35]} {[%emt 00:00:19]} Nf6 {[%clk 00:15:03]}
{[%emt 00:00:09]} 3. c4 {[%clk 00:14:34]} {[%emt 00:00:07]} c6 {[%clk
00:15:06]} {[%emt 00:00:01]} 4. cxd5 {[%clk 00:14:22]} {[%emt 00:00:18]} cxd5
{[%clk 00:15:10]} {[%emt 00:00:02]} 5. Nc3 {[%clk 00:14:25]} {[%emt 00:00:01]}
Nc6 {[%clk 00:15:08]} {[%emt 00:00:06]} 6. Bf4 {[%clk 00:14:29]} {[%emt
00:00:02]} a6 {[%clk 00:14:39]} {[%emt 00:00:34]} 7. Rc1 {[%clk 00:14:31]}
{[%emt 00:00:03]} e6 {[%clk 00:13:12]} {[%emt 00:01:31]} 8. e3 {[%clk
00:14:35]} {[%emt 00:00:02]} Bd6 {[%clk 00:13:17]} 9. Bg3 {[%clk 00:14:38]} O-O
{[%clk 00:12:49]} {[%emt 00:00:33]} 10. Bd3 {[%clk 00:14:42]} {[%emt 00:00:02]}
h6 {[%clk 00:12:41]} {[%emt 00:00:12]} 11. Ne5 {[%clk 00:14:42]} {[%emt
00:00:05]} Bxe5 {[%clk 00:12:16]} {[%emt 00:00:30]} 12. dxe5 {[%clk 00:14:46]}
{[%emt 00:00:01]} Nd7 {[%clk 00:12:20]} {[%emt 00:00:01]} 13. f4 {[%clk
00:14:50]} {[%emt 00:00:02]} f6 {[%clk 00:11:50]} {[%emt 00:00:34]} 14. exf6
{[%clk 00:14:09]} {[%emt 00:00:46]} Nxf6 {[%clk 00:11:53]} {[%emt 00:00:02]} 15.
O-O {[%clk 00:14:05]} {[%emt 00:00:10]} Bd7 {[%clk 00:11:29]} {[%emt 00:00:28]}
16. Kh1 {[%clk 00:10:34]} {[%emt 00:03:36]} Qe7 {[%clk 00:11:22]} {[%emt
00:00:12]} 17. Bh4 {[%clk 00:09:17]} {[%emt 00:01:22]} Qf7 {[%clk 00:08:15]}
{[%emt 00:03:11]} 18. e4 {[%clk 00:08:54]} {[%emt 00:00:29]} Rae8 {[%clk
00:06:06]} {[%emt 00:02:14]} 19. e5 {[%clk 00:07:19]} {[%emt 00:01:40]} Nh5
{[%clk 00:05:51]} {[%emt 00:00:20]} 20. Bb1 {[%clk 00:06:38]} {[%emt 00:00:46]}
Nxf4 {[%clk 00:05:07]} {[%emt 00:00:48]} 21. g3 {[%clk 00:03:43]} {[%emt
00:03:01]} Qh5 {[%clk 00:04:08]} {[%emt 00:01:04]} 22. Qc2 {[%clk 00:03:26]}
{[%emt 00:00:22]} Rf5 {[%clk 00:03:40]} {[%emt 00:00:33]} 23. Rxf4 {[%clk
00:03:03]} {[%emt 00:00:28]} Nxe5 {[%clk 00:03:15]} {[%emt 00:00:30]} 24. Qe2
{[%clk 00:01:07]} {[%emt 00:02:01]} Qxe2 {[%clk 00:01:57]} {[%emt 00:01:23]} 25.
Nxe2 {[%clk 00:01:11]} Rff8 {[%clk 00:01:50]} {[%emt 00:00:12]} 26. Rxf8+
{[%clk 00:00:42]} {[%emt 00:00:35]} Rxf8 {[%clk 00:01:54]} 27. g4 {[%clk
00:00:42]} {[%emt 00:00:05]} Nxg4 {[%clk 00:01:46]} {[%emt 00:00:13]} 28. Kg1
{[%clk 00:00:36]} {[%emt 00:00:11]} e5 {[%clk 00:01:28]} {[%emt 00:00:23]} 29.
Bg3 {[%clk 00:00:29]} {[%emt 00:00:12]} Re8 {[%clk 00:01:28]} {[%emt 00:00:04]}
30. Rc7 {[%clk 00:00:24]} {[%emt 00:00:11]} Bc6 {[%clk 00:00:33]} {[%emt
00:01:00]} 31. Bg6 {[%clk 00:00:07]} {[%emt 00:00:21]} Rf8 {[%clk 00:00:31]}
{[%emt 00:00:07]} 32. h3 {[%clk 00:00:09]} {[%emt 00:00:03]} Ne3 {[%clk
00:00:30]} {[%emt 00:00:06]} 33. Bxe5 {[%clk 00:00:11]} {[%emt 00:00:03]} Rf1+
{[%clk 00:00:33]} {[%emt 00:00:03]} 34. Kh2 {[%clk 00:00:15]} Rf2+ {[%clk
00:00:33]} {[%emt 00:00:05]} 35. Kg3 {[%clk 00:00:14]} {[%emt 00:00:05]} Rg2+
{[%clk 00:00:25]} {[%emt 00:00:14]} 36. Kf4 {[%clk 00:00:14]} {[%emt 00:00:05]}
Rxg6 {[%clk 00:00:25]} {[%emt 00:00:05]} 37. Kxe3 {[%clk 00:00:18]} {[%emt
00:00:01]} Rg2 {[%clk 00:00:26]} {[%emt 00:00:04]} 38. Nf4 {[%clk 00:00:12]}
{[%emt 00:00:11]} Rg1 {[%clk 00:00:25]} {[%emt 00:00:05]} 39. Kd4 {[%clk
00:00:10]} {[%emt 00:00:08]} Re1 {[%clk 00:00:13]} {[%emt 00:00:17]} 40. Rxg7+
{[%clk 00:00:12]} {[%emt 00:00:02]} Kf8 {[%clk 00:00:18]} 41. Ng6+ {[%clk
00:00:09]} {[%emt 00:00:08]} Ke8 {[%clk 00:00:22]} {[%emt 00:00:01]} 42. Kc5
{[%clk 00:00:12]} {[%emt 00:00:03]} d4 {[%clk 00:00:10]} {[%emt 00:00:17]} 43.
Re7+ {[%clk 00:00:13]} {[%emt 00:00:04]} Kd8 {[%clk 00:00:14]} 44. Bc7+ {[%clk
00:00:17]} {[%emt 00:00:01]} 1-0